[Event "German Bundesliga 2024-25"]
[Site "Germany"]
[Date "2024.11.30"]
[Round "3.15"]
[White "Feygin, Michael"]
[Black "Girel, Joseph"]
[Result "1/2-1/2"]
[Annotator "ChessBase"]
[ECO "D02"]
[WhiteElo "2448"]
[BlackElo "2486"]
[PlyCount "90"]
[EventDate "2024.09.27"]
[EventType "team-tourn"]
[EventCountry "GER"]
[SourceTitle "playchess.com"]
[Source "ChessBase"]
[SourceQuality "1"]
[WhiteTeam "Muelheim Nord"]
[BlackTeam "Bayern Muenchen"]
[TimeControl "40/5400+30:1800+30"]

1. Nf3 {[%emt 0:01:07]} d5 {[%emt 0:01:24]} 2. d4 {[%emt 0:00:10]} Nf6 {[%emt 0:00:31]} 3. Bf4 {[%emt 0:00:08]} c5 {[%emt 0:02:00]} 4. e3 {[%emt 0:00:11]} Nc6 {[%emt 0:00:10]} 5. Nbd2 {[%emt 0:00:10]} e6 {[%emt 0:03:23]} 6. c3 {[%emt 0:00:13]} Nh5 {[%emt 0:00:09]} 7. Be5 {[%emt 0:23:44]} f6 {[%emt 0:02:10]} 8. Bg3 {[%emt 0:00:21]} g6 {[%emt 0:07:46]} 9. Bd3 {[%emt 0:03:52]} cxd4 {[%emt 0:00:37]} 10. cxd4 {[%emt 0:06:10]} Be7 {[%emt 0:03:07]} 11. a3 {[%emt 0:08:34]} O-O {[%emt 0:05:08]} 12. b4 {[%emt 0:00:24]} Nxg3 {[%emt 0:07:49]} 13. hxg3 {[%emt 0:00:07]} Rf7 {[%emt 0:00:06]} 14. Nb3 {[%emt 0:12:54]} Bf8 {[%emt 0:03:10]} 15. O-O {[%emt 0:08:15]} a5 {[%emt 0:03:28]} 16. b5 {[%emt 0:01:48]} Ne7 {[%emt 0:01:40]} 17. Re1 {[%emt 0:13:16]} b6 {[%emt 0:01:44]} 18. Nbd2 {[%emt 0:05:26]} Bb7 {[%emt 0:02:41]} 19. a4 {[%emt 0:01:05]} Rc8 {[%emt 0:03:33]} 20. Rc1 {[%emt 0:00:13]} Rxc1 {[%emt 0:02:17]} 21. Qxc1 {[%emt 0:00:03]} Nf5 {[%emt 0:01:37]} 22. Bxf5 {[%emt 0:04:10]} exf5 {[%emt 0:08:41]} 23. Qb2 {[%emt 0:00:05]} Rc7 {[%emt 0:00:36]} 24. Rc1 {[%emt 0:00:04]} g5 {[%emt 0:08:36]} 25. Ne1 {[%emt 0:01:11]} Bd6 {[%emt 0:00:54]} 26. Rxc7 {[%emt 0:04:25]} Qxc7 {[%emt 0:00:24]} 27. Nd3 {[%emt 0:02:57]} Bc8 {[%emt 0:06:35]} 28. f4 {[%emt 0:00:34]} Be6 {[%emt 0:02:18]} 29. Qc1 {[%emt 0:00:15]} Qxc1+ {[%emt 0:01:00]} 30. Nxc1 {[%emt 0:00:03]} Kf7 {[%emt 0:00:34]} 31. Kf2 {[%emt 0:00:57]} h6 {[%emt 0:02:19]} 32. Nd3 {[%emt 0:00:12]} Ke7 {[%emt 0:00:59]} 33. Nf3 {[%emt 0:00:46]} Bf7 {[%emt 0:04:05]} 34. Ke2 {[%emt 0:01:06]} Bh5 {[%emt 0:00:56]} 35. Kf2 {[%emt 0:00:26]} Bg4 {[%emt 0:01:08]} 36. Nc1 {[%emt 0:00:43]} Kf7 {[%emt 0:01:32]} 37. Ne2 {[%emt 0:00:02]} Bb4 {[%emt 0:00:52]} 38. Nc1 {[%emt 0:00:36]} Bd6 {[%emt 0:04:15]} 39. Ne2 {[%emt 0:00:05]} Bb4 {[%emt 0:01:02]} 40. Nc1 {[%emt 0:00:05]} Be7 {[%emt 0:06:26]} 41. Ne2 {[%emt 0:30:41]} Bh5 {[%emt 0:31:18]} 42. Nc1 {[%emt 0:02:54]} Bb4 {[%emt 0:01:26]} 43. Nd3 {[%emt 0:00:00]} Ba3 {[%emt 0:00:00]} 44. Ke2 {[%emt 0:00:00]} Ke6 {[%emt 0:00:00]} 45. Kf2 {[%emt 0:00:00]} Bd6 {[%emt 0:00:00]} 1/2-1/2

[Event "German Bundesliga 2024-25"]
[Site "Germany"]
[Date "2024.11.30"]
[Round "3.15"]
[White "Krause, Jonah"]
[Black "Meier, Georg"]
[Result "1/2-1/2"]
[Annotator "TA"]
[ECO "E11"]
[WhiteElo "2361"]
[BlackElo "2603"]
[PlyCount "51"]
[EventDate "2024.09.27"]
[EventType "team-tourn"]
[EventCountry "GER"]
[SourceTitle "playchess.com"]
[Source "ChessBase"]
[SourceQuality "1"]
[WhiteTeam "St. Pauli"]
[BlackTeam "Viernheim"]
[TimeControl "40/5400+30:1800+30"]

{[%evp 12,51,6,16,41,26,30,17,20,19,20,13,24,17,17,15,10,17,27,14,28,29,43,37,205,206,206,64,64,64,66,70,70,70,70,60,56,0,0,0,0,0]} 1. d4 {[%emt 0:00:05]} e6 {[%emt 0:00:07]} 2. c4 {[%emt 0:00:08]} Nf6 {[%emt 0:00:32]} 3. Nf3 {[%emt 0:00:12]} Bb4+ {[%emt 0:00:19]} 4. Bd2 {[%emt 0:00:47]} Qe7 {[%emt 0:02:18]} 5. e3 {[%emt 0:00:50]} b6 {[%emt 0:00:23]} 6. Bd3 {[%emt 0:02:45]} Bb7 {[%emt 0:02:13]} 7. Nc3 {[%emt 0:03:59]} Bxc3 {[%emt 0:06:29]} 8. Bxc3 {[%emt 0:01:32]} Ne4 {[%emt 0:00:03]} 9. Rc1 {[%emt 0:01:38]} d6 {[%emt 0:13:54]} 10. O-O {[%emt 0:08:45]} Nxc3 {[%emt 0:08:27]} 11. Rxc3 {[%emt 0:00:43][%cal Oc4c5]} c5 {[%emt 0:00:32]} 12. Bc2 {[%emt 0:09:17]} O-O {[%emt 0:01:38]} 13. e4 {[%emt 0:04:04]} e5 {[%emt 0:07:09]} 14. d5 {[%emt 0:00:06]} Bc8 {[%emt 0:03:22][%cal Bb7c8,Bc8f5,Bf5c2][%mdl 32]} 15. Nd2 {[%emt 0:02:42]} h6 {[%emt 0:05:49]} 16. a3 {[%emt 0:01:00]} a5 {[%emt 0:02:11]} 17. Re3 {[%emt 0:02:40]} f5 $2 {[%emt 0:07:38] [#]} (17... Nd7 $14) 18. exf5 $18 {[%emt 0:00:31]} Bxf5 {[%emt 0:00:04]} 19. Rf3 {[%emt 0:10:01]} (19. Bxf5 $18 Rxf5 20. Qg4) 19... Bxc2 $1 $14 {[%emt 0:02:20]} 20. Rxf8+ {[%emt 0:03:20]} Qxf8 {[%emt 0:00:04]} 21. Qxc2 {[%emt 0:00:10]} Nd7 {[%emt 0:01:52] Black is weak on the light squares} 22. Ne4 {[%emt 0:01:50]} Rb8 {[%emt 0:04:04]} 23. Qa4 {[%emt 0:09:33] White is more active.} Nf6 {[%emt 0:01:21]} 24. f3 {[%emt 0:06:42]} ({White should play} 24. Nc3 $14) 24... Nxe4 $11 {[%emt 0:04:41]} 25. fxe4 {[%emt 0:00:02]} Qe8 {[%emt 0:00:07]} 26. Qxe8+ {[%emt 0:04:29] Weighted Error Value: White=0.17 (very precise) /Black=0.20 (precise) .  Loses game:     	---       	Black=1      Mistake:       	White=2     	---        OK:         	White=8     	Black=8      Best:        	White=1     	Black=2      Strong:       	---       	Black=1} 1/2-1/2

[Event "German Bundesliga 2024-25"]
[Site "Germany"]
[Date "2024.11.30"]
[Round "3.16"]
[White "Tarlev, Konstantin"]
[Black "Jahncke, Giso"]
[Result "1/2-1/2"]
[Annotator "ChessBase"]
[ECO "C88"]
[WhiteElo "2555"]
[BlackElo "2226"]
[PlyCount "80"]
[EventDate "2024.09.27"]
[EventType "team-tourn"]
[EventCountry "GER"]
[SourceTitle "playchess.com"]
[Source "ChessBase"]
[SourceQuality "1"]
[WhiteTeam "Viernheim"]
[BlackTeam "St. Pauli"]
[TimeControl "40/5400+30:1800+30"]

1. e4 {[%emt 0:00:02]} e5 {[%emt 0:00:13]} 2. Nf3 {[%emt 0:00:04]} Nc6 {[%emt 0:00:05]} 3. Bb5 {[%emt 0:00:02]} a6 {[%emt 0:00:06]} 4. Ba4 {[%emt 0:00:02]} Nf6 {[%emt 0:00:15]} 5. O-O {[%emt 0:00:16]} Be7 {[%emt 0:00:07]} 6. Re1 {[%emt 0:00:18]} b5 {[%emt 0:00:06]} 7. Bb3 {[%emt 0:00:02]} O-O {[%emt 0:00:09]} 8. d3 {[%emt 0:03:59]} d6 {[%emt 0:00:21]} 9. a3 {[%emt 0:00:04]} Na5 {[%emt 0:11:09]} 10. Ba2 {[%emt 0:00:14]} c5 {[%emt 0:00:07]} 11. Bg5 {[%emt 0:12:14]} Nc6 {[%emt 0:17:08]} 12. Nc3 {[%emt 0:03:47]} Be6 {[%emt 0:01:56]} 13. Bxf6 {[%emt 0:22:46]} Bxf6 {[%emt 0:00:10]} 14. Nd5 {[%emt 0:00:01]} g6 {[%emt 0:01:19]} 15. b4 {[%emt 0:03:15]} Bg7 {[%emt 0:04:41]} 16. bxc5 {[%emt 0:16:55]} dxc5 {[%emt 0:00:08]} 17. Ne3 {[%emt 0:00:02]} Rb8 {[%emt 0:30:02]} 18. Bxe6 {[%emt 0:12:03]} fxe6 {[%emt 0:00:05]} 19. Nd2 {[%emt 0:00:25]} Bh6 {[%emt 0:03:09]} 20. Nb3 {[%emt 0:08:31]} Bxe3 {[%emt 0:01:26]} 21. Rxe3 {[%emt 0:00:09]} c4 {[%emt 0:05:41]} 22. dxc4 {[%emt 0:03:32]} Qxd1+ {[%emt 0:01:34]} 23. Rxd1 {[%emt 0:00:09]} bxc4 {[%emt 0:00:08]} 24. Nc5 {[%emt 0:01:08]} Nd4 {[%emt 0:01:21]} 25. c3 {[%emt 0:05:05]} Nc2 {[%emt 0:10:08]} 26. Re2 {[%emt 0:00:04]} Rfd8 {[%emt 0:00:14]} 27. Rxd8+ {[%emt 0:06:03]} Rxd8 {[%emt 0:00:05]} 28. h4 {[%emt 0:01:10]} Nxa3 {[%emt 0:00:39]} 29. Ra2 {[%emt 0:01:56]} Nb5 {[%emt 0:01:29]} 30. Rxa6 {[%emt 0:00:03]} Nxc3 {[%emt 0:00:41]} 31. Rxe6 {[%emt 0:00:41]} Ne2+ {[%emt 0:00:41]} 32. Kh2 {[%emt 0:00:12]} Rc8 {[%emt 0:02:27]} 33. Na4 {[%emt 0:00:12]} c3 {[%emt 0:00:55]} 34. Nxc3 {[%emt 0:00:02]} Rxc3 {[%emt 0:02:04]} 35. Rxe5 {[%emt 0:00:03]} Rc2 {[%emt 0:01:17]} 36. h5 {[%emt 0:02:06]} Nf4 {[%emt 0:03:13]} 37. hxg6 {[%emt 0:00:03]} hxg6 {[%emt 0:00:13]} 38. Kg3 {[%emt 0:00:18]} Nd3 {[%emt 0:00:19]} 39. Rg5 {[%emt 0:00:21]} Nxf2 {[%emt 0:00:20]} 40. Rxg6+ {[%emt 0:00:03]} Kf7 {[%emt 0:00:13]} 1/2-1/2

[Event "German Bundesliga 2024-25"]
[Site "Germany"]
[Date "2024.11.30"]
[Round "3.16"]
[White "Johansson, Linus"]
[Black "Dinstuhl, Volkmar"]
[Result "1/2-1/2"]
[Annotator "ChessBase"]
[ECO "D07"]
[WhiteElo "2412"]
[BlackElo "2380"]
[PlyCount "64"]
[EventDate "2024.09.27"]
[EventType "team-tourn"]
[EventCountry "GER"]
[SourceTitle "playchess.com"]
[Source "ChessBase"]
[SourceQuality "1"]
[WhiteTeam "Bayern Muenchen"]
[BlackTeam "Muelheim Nord"]
[TimeControl "40/5400+30:1800+30"]

1. d4 {[%emt 0:00:03]} d5 {[%emt 0:00:05]} 2. c4 {[%emt 0:00:11]} dxc4 {[%emt 0:00:08]} 3. e4 {[%emt 0:00:08]} Nc6 {[%emt 0:00:06]} 4. Nf3 {[%emt 0:14:26]} Nf6 {[%emt 0:00:16]} 5. Nc3 {[%emt 0:00:36]} Bg4 {[%emt 0:00:26]} 6. d5 {[%emt 0:01:02]} Ne5 {[%emt 0:00:37]} 7. Bf4 {[%emt 0:04:55]} Nfd7 {[%emt 0:03:06]} 8. Be2 {[%emt 0:02:38]} Bxf3 {[%emt 0:00:51]} 9. gxf3 {[%emt 0:00:06]} e6 {[%emt 0:00:18]} 10. dxe6 {[%emt 0:13:29]} fxe6 {[%emt 0:01:01]} 11. Bg3 {[%emt 0:02:07]} Bb4 {[%emt 0:09:13]} 12. f4 {[%emt 0:04:54]} Nd3+ {[%emt 0:05:39]} 13. Bxd3 {[%emt 0:00:06]} Bxc3+ {[%emt 0:00:07]} 14. bxc3 {[%emt 0:00:05]} cxd3 {[%emt 0:00:05]} 15. Qxd3 {[%emt 0:00:25]} Qe7 {[%emt 0:03:32]} 16. O-O {[%emt 0:09:18]} Nc5 {[%emt 0:08:14]} 17. Qc4 {[%emt 0:00:41]} O-O {[%emt 0:00:54]} 18. a4 {[%emt 0:07:37]} Kh8 {[%emt 0:09:05]} 19. a5 {[%emt 0:01:31]} Rad8 {[%emt 0:03:36]} 20. Rfd1 {[%emt 0:01:11]} h6 {[%emt 0:00:49]} 21. Kg2 {[%emt 0:01:52]} b6 {[%emt 0:06:13]} 22. f3 {[%emt 0:02:14]} Qe8 {[%emt 0:13:47]} 23. Rd4 {[%emt 0:02:36]} Qc6 {[%emt 0:01:43]} 24. Rad1 {[%emt 0:04:13]} Rb8 {[%emt 0:01:55]} 25. axb6 {[%emt 0:01:00]} axb6 {[%emt 0:01:09]} 26. Ra1 {[%emt 0:15:42]} Ra8 {[%emt 0:01:09]} 27. Rxa8 {[%emt 0:00:22]} Qxa8 {[%emt 0:03:47]} 28. Qe2 {[%emt 0:01:52]} Qa1 {[%emt 0:01:32]} 29. Qe1 {[%emt 0:03:18]} Qa3 {[%emt 0:02:09]} 30. f5 {[%emt 0:01:26]} exf5 {[%emt 0:01:26]} 31. exf5 {[%emt 0:00:07]} Qa2+ {[%emt 0:00:07]} 32. Qd2 {[%emt 0:01:10]} Qxd2+ {[%emt 0:07:50]} 1/2-1/2

[Event "German Bundesliga 2024-25"]
[Site "Germany"]
[Date "2024.11.30"]
[Round "3.16"]
[White "Kocharin, Timur"]
[Black "Gasthofer, Alexander"]
[Result "1/2-1/2"]
[Annotator "RC"]
[ECO "E06"]
[WhiteElo "2245"]
[BlackElo "2388"]
[PlyCount "125"]
[EventDate "2024.09.27"]
[EventType "team-tourn"]
[EventCountry "GER"]
[SourceTitle "playchess.com"]
[Source "ChessBase"]
[SourceQuality "1"]
[WhiteTeam "Baden-Baden"]
[BlackTeam "Bad Mergentheim"]
[TimeControl "40/5400+30:1800+30"]

1. d4 {[%emt 0:00:10]} d5 {[%emt 0:01:18]} 2. c4 {[%emt 0:00:28]} e6 {[%emt 0:04:05]} 3. Nf3 {[%emt 0:01:16]} Nf6 {[%emt 0:00:25]} 4. g3 {[%emt 0:00:18]} Be7 {[%emt 0:04:57]} 5. Bg2 {[%emt 0:01:06]} O-O {[%emt 0:00:21]} 6. Nc3 {[%emt 0:04:19]} dxc4 {[%emt 0:05:01]} 7. Ne5 {[%emt 0:00:51]} Nc6 {[%emt 0:06:55]} 8. Bxc6 {[%emt 0:01:10]} bxc6 {[%emt 0:00:07]} 9. Nxc6 {[%emt 0:00:08]} Qe8 {[%emt 0:00:15]} 10. Nxe7+ {[%emt 0:00:17]} Qxe7 {[%emt 0:00:08]} 11. Qa4 {[%emt 0:00:16]} c5 {[%emt 0:11:24]} 12. dxc5 {[%emt 0:02:00]} Qxc5 {[%emt 0:01:44]} 13. Be3 {[%emt 0:00:32]} Qc7 {[%emt 0:10:30]} 14. f3 {[%emt 0:03:28]} Bb7 {[%emt 0:16:01]} 15. Qa3 {[%emt 0:14:28]} Ng4 {[%emt 0:16:35]} 16. Qc5 {[%emt 0:03:48]} Qxc5 {[%emt 0:00:42]} 17. Bxc5 {[%emt 0:00:05]} Rfc8 {[%emt 0:00:09]} 18. Bg1 {[%emt 0:10:13]} Rd8 {[%emt 0:03:51]} 19. h3 {[%emt 0:00:54]} Nf6 {[%emt 0:00:26]} 20. Be3 {[%emt 0:01:40]} Nd5 {[%emt 0:01:01]} 21. Nxd5 {[%emt 0:07:23]} Bxd5 {[%emt 0:01:36]} 22. Bd2 {[%emt 0:03:18]} e5 {[%emt 0:00:32]} 23. Ba5 {[%emt 0:02:07]} Rdb8 {[%emt 0:00:26]} 24. O-O-O {[%emt 0:00:47]} Be6 {[%emt 0:00:44]} 25. Bc3 {[%emt 0:01:08]} e4 {[%emt 0:02:09]} 26. fxe4 {[%emt 0:02:49]} Rd8 {[%emt 0:00:05]} 27. g4 {[%emt 0:02:31]} Rxd1+ {[%emt 0:02:26]} 28. Rxd1 {[%emt 0:00:28]} h6 {[%emt 0:00:13]} 29. Rd6 {[%emt 0:00:34]} a6 {[%emt 0:00:26]} 30. Kd2 {[%emt 0:00:39]} Ra7 {[%emt 0:03:16]} 31. Ke3 {[%emt 0:01:13]} a5 {[%emt 0:00:45]} 32. Bd4 {[%emt 0:02:46]} Ra8 {[%emt 0:00:27]} 33. a3 {[%emt 0:00:21]} Kh7 {[%emt 0:01:28]} 34. Kf3 {[%emt 0:03:51]} g5 {[%emt 0:00:28]} 35. Kg3 {[%emt 0:01:51]} a4 {[%emt 0:00:13]} 36. Rc6 {[%emt 0:05:25]} Kg6 {[%emt 0:01:19]} 37. Rc5 {[%emt 0:02:35]} Kh7 {[%emt 0:01:53]} 38. Bc3 {[%emt 0:01:44]} Kg6 {[%emt 0:00:26]} 39. Be5 {[%emt 0:02:59]} Kh7 {[%emt 0:00:32]} 40. Bf6 {[%emt 0:01:40]} Kg6 {[%emt 0:00:16]} 41. Bc3 {[%emt 0:30:33]} Kh7 {[%emt 0:30:40]} 42. Rb5 {[%emt 0:02:37]} Bd7 {[%emt 0:01:39]} 43. Rb6 {[%emt 0:01:31]} Be6 {[%emt 0:00:27]} 44. Rb7 {[%emt 0:05:00]} Kg6 {[%emt 0:01:07]} 45. Rb4 {[%emt 0:02:39]} Kh7 {[%emt 0:01:04]} 46. Bd4 {[%emt 0:02:26]} Kg6 {[%emt 0:00:00]} 47. Be3 {[%emt 0:00:00]} Kh7 {[%emt 0:00:00]} 48. Rb5 {[%emt 0:00:00]} Bd7 {[%emt 0:00:00]} 49. Rb6 {[%emt 0:00:00]} Be6 {[%emt 0:00:00]} 50. Rb4 {[%emt 0:00:00]} Kg6 {[%emt 0:00:00]} 51. h4 {[%emt 0:00:00]} gxh4+ {[%emt 0:00:00]} 52. Kxh4 {[%emt 0:00:00]} Kh7 {[%emt 0:00:00]} 53. g5 {[%emt 0:00:00]} hxg5+ {[%emt 0:00:00]} 54. Kxg5 {[%emt 0:00:00]} Rg8+ {[%emt 0:00:00]} 55. Kf4 {[%emt 0:00:00]} Ra8 {[%emt 0:00:00]} 56. Ke5 {[%emt 0:00:00]} Kg6 {[%emt 0:00:00]} 57. Kd6 {[%emt 0:00:00]} Bg4 {[%emt 0:00:00]} 58. Rxc4 {[%emt 0:00:00]} Bxe2 {[%emt 0:00:00]} 59. Rc6 {[%emt 0:00:00]} Ra6 {[%emt 0:00:00]} 60. Rxa6 {[%emt 0:00:00]} Bxa6 {[%emt 0:00:00]} 61. Bd4 {[%emt 0:00:00]} f6 {[%emt 0:00:00]} 62. Ke6 {[%emt 0:00:00]} Bb7 {[%emt 0:00:00]} 63. Bxf6 {[%emt 0:00:00]} 1/2-1/2